Cogmind - Beta 17.1 @@@ ROGUE MODE // 2026.09.06 @ 07:39:11 Player: Somberlain Result: Destroyed by G-73 Enforcer with Phase Gun Performance ------------- Evolutions (6) 3000 Regions Visited (19) 3800 Robots Destroyed (248) 1240 Value Destroyed (10746) 10746 Prototype IDs (12) 240 Alien Tech Used (0) 0 Bonus (3215) 3215 TOTAL SCORE: 22241 Bonus ------- High Alert Combat Kills 820 Follower Combat Kills 1154 Entered Garrisons 400 Used RIF Installer 1000 Friendly Fire -159 Cogmind --------- Core Integrity 0/1150 Matter 201/300 Energy 99/100 System Corruption 20% Temperature Cool (9) Movement Core (50) Location -4/Upper Caves Parts ------- > --- POWER (2) -------- (None) > --- PROPULSION (4) --- (None) > --- UTILITY (11) ----- Advanced Cryofiber Web Graphene Brace Authchip [R/Combat] Relay Coupler [Duelist] (28) Relay Coupler [Demolisher] (21) > --- WEAPON (2) ------- (None) > --- INVENTORY (5) ---- Light Antimatter Reactor Myomer Leg Heavy Mass Driver Improved Remote Datajack Peak State ------------ > --- POWER ------------ Micro Fission Core Light Antimatter Reactor > --- PROPULSION ------- Flexi-carbon Leg Thunder Leg Myomer Leg Myomer Leg > --- UTILITY ---------- Cryofiber Web High-capacity Storage Unit Advanced Signal Interpreter Improved Target Analyzer Improved Transmission Jammer Advanced Shield Generator Hacking Suite Improved Hacking Suite System Shield Relay Coupler [Hunter] Long-range Tractor Beam > --- WEAPON ----------- Heavy Phase Cannon KE Penetrator > --- INVENTORY -------- Angular Momentum Engine Armored Medium Treads Armored Medium Treads Improved Target Analyzer Advanced Recoil Stabilizer Advanced ECM Suite Advanced Thermal Shield Point Defense System Authchip [R/Combat] Relay Coupler [Duelist] Relay Coupler [Demolisher] High-powered Shock Rifle Tesla Rifle Variable Charge Gun HERF Cannon Plasma Cannon Long-range Missile Launcher Improved Remote Datajack [Rating: 107] Favorites ----------- Power Heavy Deuterium Engine Engine Heavy Deuterium Engine Power Core Light Nuclear Core Reactor Antimatter Reactor Propulsion Medium Treads Treads Medium Treads Leg Carbon-fiber Leg Wheel Armored Huge Wheel Utility Hacking Suite Device Advanced Sensor Array Storage High-capacity Storage Unit Processor Melee Analysis Suite Hackware Hacking Suite Protection Improved Core Shielding Weapon Impact Mace Energy Gun Heavy Beamcaster Energy Cannon Improved EM Pulse Cannon Ballistic Gun High-powered Shotgun Ballistic Cannon Magnetic Acceleration Cannon Launcher Heavy Rocket Launcher Special Weapon Remote Datajack Impact Weapon Impact Mace Build | -11 -10 -9 -8 -8 -8 -8 -7 -7 -7 -7 -7 -6 -6 -6 -5 -5 -5 -4 -4 ------- Run | Yrd Mat Mat Mat Gar Mat Gar Fac Was Fac Low Low Fac Low Low Fac Was Fac Fac Upp Slots Evolved 12 | . . 2 2 . . . 2 . . . . 2 . . 2 . . 2 . Power 1 | . . . . . . . . . . . . 1 . . . . . . . Propulsion 2 | . . . 1 . . . . . . . . . . . 1 . . . . Utility 9 | . . 2 1 . . . 2 . . . . 1 . . 1 . . 2 . Weapon . | . . . . . . . . . . . . . . . . . . . . Parts Attached 246 | 6 9 12 18 10 7 15 8 6 22 2 . 52 2 1 19 . 10 44 3 Power 37 | 1 1 3 3 1 3 . . 1 4 . . 10 . . 2 . 2 6 . Engine 16 | 1 . 3 1 . 2 . . . 3 . . 3 . . 2 . 1 . . Core 17 | . 1 . 2 1 1 . . . 1 . . 7 . . . . 1 3 . Reactor 4 | . . . . . . . . 1 . . . . . . . . . 3 . Propulsion 64 | 2 4 2 8 3 1 2 3 3 4 . . 15 1 . 5 . . 11 . Treads 20 | . . . 3 1 . . . 3 . . . 8 1 . 2 . . 2 . Leg 42 | 2 4 2 5 2 1 2 3 . 3 . . 6 . . 3 . . 9 . Wheel 2 | . . . . . . . . . 1 . . 1 . . . . . . . Hover . | . . . . . . . . . . . . . . . . . . . . Flight . | . . . . . . . . . . . . . . . . . . . . Utility 86 | 1 1 3 4 1 2 8 5 1 6 2 . 19 . . 7 . 5 18 3 Device 32 | . . 1 1 1 . . . . 4 1 . 9 . . 1 . 4 10 . Storage 4 | 1 . . 2 . 1 . . . . . . . . . . . . . . Processor 14 | . . . . . . . . 1 . . . 7 . . 1 . 1 4 . Hackware 33 | . 1 2 1 . 1 7 5 . 2 1 . 3 . . 3 . . 4 3 Protection 3 | . . . . . . 1 . . . . . . . . 2 . . . . Artifact . | . . . . . . . . . . . . . . . . . . . . Weapon 59 | 2 3 4 3 5 1 5 . 1 8 . . 8 1 1 5 . 3 9 . Energy Gun 23 | 1 2 2 2 2 1 . . 1 4 . . 1 . 1 2 . 1 3 . Energy Cannon 8 | . . . . . . 1 . . 2 . . 1 . . 2 . 1 1 . Ballistic Gun 13 | 1 . 2 1 . . 1 . . 1 . . 3 . . . . 1 3 . Ballistic Cannon 2 | . . . . . . . . . . . . . 1 . . . . 1 . Launcher 6 | . . . . 1 . 3 . . . . . 1 . . 1 . . . . Special Weapon 4 | . 1 . . 1 . . . . 1 . . . . . . . . 1 . Impact Weapon 3 | . . . . 1 . . . . . . . 2 . . . . . . . Slashing Weapon . | . . . . . . . . . . . . . . . . . . . . Piercing Weapon . | . . . . . . . . . . . . . . . . . . . . Special Melee Weapon . | . . . . . . . . . . . . . . . . . . . . Unidentified Prototypes 6 | . . 1 . . . . . . 2 1 . 1 . . . . . 1 . Corrupted Parts 6 | . . . . . . . . . . . . 1 . . 3 . . 2 . System Corruption 21 | . . . . . . . . . . . . 1 . . 16 . . 4 . Parts Lost 107 | . . 1 . 4 . 6 5 . 9 . 1 24 3 . 12 . 1 33 8 Power 23 | . . 1 . 1 . . 1 . 1 . . 8 2 . 1 . . 7 1 Propulsion 31 | . . . . 3 . 3 2 . 3 . . 4 1 . 5 . 1 7 2 Utility 25 | . . . . . . 1 1 . 1 . . 5 . . 3 . . 12 2 Weapon 28 | . . . . . . 2 1 . 4 . 1 7 . . 3 . . 7 3 Highest Loss Streak 14 | . . 1 . 2 . 2 5 . 3 . 1 5 2 . 6 . 1 14 7 To Critical Strikes . | . . . . . . . . . . . . . . . . . . . . Average Backups 15 | . 4 7 8 9 12 18 18 14 18 16 17 15 17 17 14 12 12 17 9 Power . | . 1 . 1 . . 2 1 . 1 1 2 . . . . . . . 1 Propulsion 1 | . 1 1 1 1 . 1 . . . . . 1 2 2 . 1 . 1 . Utility 9 | . 1 2 3 3 8 11 13 9 11 10 11 12 14 13 11 8 8 9 5 Weapon 2 | . . 2 2 2 1 2 2 3 5 3 3 1 1 1 1 2 3 4 1 Tool/Special . | . . . . . . . . . . . . . . . . . . . . Unused Backups 32 | . . 5 4 2 . 5 3 2 2 . . 1 . 2 . . 1 1 4 Power 9 | . . . 1 1 . 1 1 1 . . . 1 . . . . . 1 2 Propulsion 1 | . . . . . . . . . . . . . . . . . 1 . . Utility 16 | . . 3 1 1 . 4 1 1 2 . . . . 2 . . . . 1 Weapon 6 | . . 2 2 . . . 1 . . . . . . . . . . . 1 Tool/Special . | . . . . . . . . . . . . . . . . . . . . Average Slot Usage (%) 87 | . 96 99 99 94 100 96 88 76 92 90 70 78 86 86 77 88 84 85 52 Engine 3 | . 6 9 2 . 3 9 4 . 2 7 7 5 . . 2 5 5 1 . Core 2 | . 7 1 6 9 5 . . . 1 . . 4 . . . . 1 5 2 Treads 6 | . . . 1 12 . . . 7 6 . . 5 19 20 14 . . . . Leg 10 | . 28 22 25 10 27 26 19 . 7 7 7 2 . . 4 17 12 14 10 Wheel 1 | . . . . . . . . . . 7 7 3 . . . . . . . Device 7 | . . 2 . 8 . . . . 6 7 7 12 6 6 5 23 18 17 14 Storage 7 | . 14 11 9 9 9 9 7 5 7 7 7 6 6 6 5 5 5 5 2 Processor 7 | . . . . . . . . 1 . . . 8 26 26 13 5 9 12 10 Hackware 24 | . 10 30 35 27 35 31 43 46 38 36 23 15 13 13 16 17 16 16 4 Energy Gun 4 | . 15 5 16 12 16 . . 2 7 10 1 . . . . . . 4 5 Energy Cannon 1 | . . . . . . . 4 . 3 . 6 2 . . 1 11 8 1 . Ballistic Gun 2 | . 11 16 1 . . . 4 . 1 . . 2 . . . . 1 2 . Impact Weapon 3 | . . . . 2 1 6 1 . 1 . . 6 6 10 5 . . . . Peak Build Rating 107 | 6 13 26 39 39 39 46 49 64 67 67 70 79 63 55 73 61 76 107 106 Average Rating 53 | 4 9 23 34 34 35 41 42 47 56 56 64 60 55 54 58 61 65 91 75 On Entrance 48 | . 6 13 25 39 35 39 44 36 64 55 67 64 63 55 55 61 61 76 104 Avg Prop Armor Cover (%) 11 | . . . . . . . . 12 9 7 5 4 15 20 16 . . 6 . Naked Turns 53 | . . . . . . . . . . . . . . . . . . . 53 Heaviest Build 90 | 10 14 18 26 28 55 66 63 64 70 69 72 86 61 52 77 63 86 90 79 Greatest Support 112 | 20 20 34 84 84 47 47 50 70 97 28 28 84 84 56 112 63 63 98 66 Greatest Overweight (x) 18 | . . . . . 1 2 2 . 2 2 2 3 1 1 18 . 1 4 1 Average Overweight (x) . | . . . . . . 1 1 . . 1 2 1 . . . . . . . Largest Inventory Capacity 25 | 8 8 8 25 10 20 20 20 20 20 20 20 20 20 20 20 20 20 20 20 Average Capacity 17 | 7 8 8 9 10 15 20 20 16 20 19 20 20 20 20 20 20 20 20 12 Most Carried 20 | . 8 8 10 10 17 20 20 20 20 20 17 20 18 19 20 12 15 20 19 Average Carried 15 | . 4 7 8 9 12 18 18 14 19 16 17 15 17 18 15 12 12 17 10 Final Capacity 20 | 8 8 8 10 10 20 20 20 20 20 20 20 20 20 20 20 20 20 20 5 Final Carried 20 | . 6 7 10 10 17 20 18 20 16 17 17 17 18 19 12 12 15 14 5 Class Distribution -------------------- 60% | Hacker-Mutant 16% | Bothacker-Mutant 8% | Hacker-Gladiator 4% | Wizard-Mutant 3% | Mutant Dominant Class ---------------- Mutant | -10/Materials Hacker-Mutant | -9/Materials Hacker-Mutant | -8/Materials Hacker-Mutant | -8/Garrison Hacker-Mutant | -8/Materials Bothacker-Mutant | -8/Garrison Bothacker-Mutant | -7/Factory Wizard-Mutant | -7/Waste Hacker-Mutant | -7/Factory Hacker-Mutant | -7/Lower Caves Hacker-Mutant | -7/Lower Caves Bothacker-Mutant | -6/Factory Hacker-Mutant | -6/Lower Caves Hacker-Gladiator | -6/Lower Caves Hacker-Mutant | -5/Factory Hacker-Skirmisher | -5/Waste Hacker-Mutant | -5/Factory Hacker-Mutant | -4/Factory Scavenger-Skirmisher | -4/Upper Caves Resources | -11 -10 -9 -8 -8 -8 -8 -7 -7 -7 -7 -7 -6 -6 -6 -5 -5 -5 -4 -4 ----------- Run | Yrd Mat Mat Mat Gar Mat Gar Fac Was Fac Low Low Fac Low Low Fac Was Fac Fac Upp Matter Collected 6782 | 160 218 460 194 273 138 646 168 144 546 98 118 1447 215 53 279 . 111 1490 24 Remotely 826 | . . . . . . . . . . . . . . . . . . 826 . Salvage Created 9326 | . 463 603 720 614 350 302 211 . 1209 . 118 1826 80 51 973 . 205 1511 90 Parts 466 | . 35 54 34 32 19 15 14 . 50 . 4 68 . 4 46 . 4 83 4 Haulers Intercepted 10 | . 1 2 4 . . . . . 2 . . . . . 1 . . . . Recyclers Shooed 6 | . . . . . 1 . . . 1 . . . . . 1 . . 3 . Parts Field Recycled . | . . . . . . . . . . . . . . . . . . . . Retrieved Matter . | . . . . . . . . . . . . . . . . . . . . Parts Self-Destructed 6 | . . . . . . . . . . . 4 . 2 . . . . . . Prevented 14 | . . . . . . . . . . . 4 . 1 4 . . . . 5 Parts Restored . | . . . . . . . . . . . . . . . . . . . . Kills | -11 -10 -9 -8 -8 -8 -8 -7 -7 -7 -7 -7 -6 -6 -6 -5 -5 -5 -4 -4 ------- Run | Yrd Mat Mat Mat Gar Mat Gar Fac Was Fac Low Low Fac Low Low Fac Was Fac Fac Upp Combat Hostiles Destroyed 174 | . 8 25 7 21 3 12 4 . 21 . 2 34 2 1 11 . 3 19 1 Melee 11 | . . . . . . . . . . . . 5 . 1 5 . . . . Guns 109 | . 8 25 6 17 3 1 3 . 18 . . 13 . . . . . 15 . Cannons 13 | . . . . . . 1 1 . 1 . 1 5 . . 1 . 2 1 . AOE 25 | . . . . 4 . 10 . . . . . 6 . . 2 . . 3 . Classes Destroyed 19 | . 5 4 2 2 . . . . 1 . . 1 2 . 1 . . 1 . Worker 13 | . . 1 1 . . . . . . . . 6 . . 1 . . 4 . Builder 9 | . . 1 . . 1 . . . . . . 3 . . 2 . . 2 . Tunneler 4 | . 1 . . . 1 . . . 1 . . 1 . . . . . . . Hauler 10 | . 1 2 4 . . . . . 2 . . . . . 1 . . . . Recycler 14 | . . . 2 . 1 . . . 2 . . 4 . . 2 . . 3 . Mechanic 2 | . . . . . . . . . . . . . . . 2 . . . . Operator 6 | . 2 . . . 1 . . . 1 . . . . . 1 . . 1 . Watcher 15 | . 1 1 1 . 3 1 . . 1 . . 2 . . 3 . 1 1 . Swarmer 58 | . . 17 . 6 2 2 . . 5 . . 19 . . 4 . . 3 . Grunt 52 | . 8 5 2 7 1 5 2 . 9 . 2 6 . . . . 2 3 . Brawler 3 | . . . . 1 . 1 . . 1 . . . . . . . . . . Duelist 1 | . . . . . . . . . 1 . . . . . . . . . . Sentry 17 | . . 3 4 3 . 1 1 . 1 . . 3 . . . . . . 1 Hunter 13 | . . . 1 1 . . . . . . . . 1 1 3 . . 6 . Programmer 28 | . . . . 3 . 3 1 . 4 . . 5 . . 4 . 1 7 . Heavy 1 | . . . . . . . . . . . . . . . . . . 1 . Behemoth 1 | . . . . . . . . . . . . 1 . . . . . . . Samaritan 1 | . . . . . . . . . . . . . 1 . . . . . . Thief 1 | . . . . . . . . . . . . . 1 . . . . . . Best Kill Streak 10 | . 3 5 6 9 3 3 1 . 5 . 1 9 1 1 4 . 1 10 1 Combat Bots Only 9 | . 3 4 2 9 2 3 1 . 4 . 1 5 1 1 2 . 1 5 1 Max Kills in Single Turn 4 | . 1 2 2 2 1 3 1 . 2 . 1 4 1 1 2 . 1 3 1 Gunslinging 1 | . . 1 . . . . . . . . . . . . . . . . . Exploded 3 | . . . . 1 . 3 . . . . . 2 . . 1 . . 1 . Melee 1 | . . . . . . . . . . . . 1 . 1 1 . . . . Uniques/NPCs Destroyed . | . . . . . . . . . . . . . . . . . . . . Combat | -11 -10 -9 -8 -8 -8 -8 -7 -7 -7 -7 -7 -6 -6 -6 -5 -5 -5 -4 -4 -------- Run | Yrd Mat Mat Mat Gar Mat Gar Fac Was Fac Low Low Fac Low Low Fac Was Fac Fac Upp Hostile Shots Fired 1794 | . 59 100 23 119 15 47 124 . 214 10 12 397 37 16 185 . 19 330 87 Missed 562 | . 13 38 8 28 5 23 52 . 52 4 4 126 6 7 50 . 9 109 28 Hits 1232 | . 46 62 15 91 10 24 72 . 162 6 8 271 31 9 135 . 10 221 59 Melee 10 | . . . . . . . . . 8 . . 1 1 . . . . . . Projectile 1222 | . 46 62 15 91 10 24 72 . 154 6 8 270 30 9 135 . 10 221 59 AOE 3 | . . . . . . . . . . . . 1 . . 1 . 1 . . Critical Strikes 45 | . 2 3 . 4 . . 1 . 5 . . 6 . . 4 . 1 14 5 Actively Blocked 5 | . . . . . . . . . . . . . . . . . . 1 4 Part Disruptions 3 | . . . . . . . . . . . . . . . 2 . . 1 . Damage Taken 20904 | . 551 582 221 1199 84 890 633 . 2663 49 122 4829 580 32 2666 . 259 4298 1246 Core 3670 | . 154 92 76 201 8 246 125 . 274 27 32 739 91 . 359 . 86 798 362 Absorbed by Shields 291 | . . . . . . . . . . . . 133 . . . . . 152 6 Reduced by Siege Mode 27 | . . . . . . . . . 27 . . . . . . . . . . Redirected to Shielding 38 | . . . . . . 38 . . . . . . . . . . . . . Regen/Repaired (Parts) 1234 | . . . . . . . . . 1010 . . 224 . . . . . . . Core Remaining (%) 44 | 100 38 77 . . . 3 . . . . 34 . . 2 . . 55 . . Volleys Fired 600 | . 47 51 31 44 31 27 23 . 96 10 7 66 1 . 14 . 12 133 7 Largest 2 | . 2 2 2 2 2 2 2 . 2 2 2 2 1 . 2 . 2 2 2 Hottest 315 | . 105 112 160 160 100 113 135 . 162 162 169 150 44 . 160 . 315 315 135 Shots Fired 1025 | . 81 102 62 83 61 42 31 . 181 17 9 85 1 . 18 1 24 214 13 Gun 828 | . 76 102 62 73 61 4 26 . 165 12 2 59 . . 3 . 5 165 13 Cannon 111 | . . . . . . 2 5 . 13 . 7 20 1 . 11 1 19 32 . Launcher 59 | . . . . 10 . 27 . . . . . 5 . . 4 . . 13 . Special 27 | . 5 . . . . 9 . . 3 5 . 1 . . . . . 4 . Kinetic 307 | . 34 84 4 . . 2 17 . 34 . . 28 1 . . . 3 100 . Thermal 448 | . 47 18 58 73 . 2 5 . 131 12 2 7 . . 11 1 21 54 6 Explosive 59 | . . . . 10 . 27 . . . . . 5 . . 4 . . 13 . Electromagnetic 189 | . . . . . 61 2 9 . 13 . 7 44 . . 3 . . 43 7 Robot Hit Streak 14 | . 9 9 13 10 5 12 10 . 13 6 5 14 . . 3 3 6 8 5 Robot Miss Streak 7 | . 3 5 7 7 5 5 2 . 5 1 1 3 2 . 3 . 3 5 2 Penetration Max 1 | . . . 1 . . . 1 . 1 . . . . . . . . 1 . Secondary Targets 14 | . . 3 . 6 . . . . 3 . . 1 . . . . . 1 . Max Gunslinging Chain 1 | . . 1 . 1 . . . . 1 . . 1 . . . . . 1 . Shots Hit Robots 701 | . 56 72 44 59 32 17 23 . 107 5 7 102 12 1 37 1 12 105 9 Core Hits 380 | . 26 37 26 52 14 33 7 . 46 1 2 45 . . 21 . 5 63 2 Critical Kills 7 | . . 1 . . . . 1 . . . . 1 . . . . 1 3 . Critical Parts Destroyed 20 | . . 1 . . . . . . . . . 9 1 . 6 . . 3 . Critical Strikes 36 | . . 2 2 . . . 1 . 6 1 . 10 1 . 6 . 1 6 . Burn 9 | . . . 2 . . . . . 6 1 . . . . . . . . . Meltdown 1 | . . . . . . . . . . . . . . . . . 1 . . Destroy 9 | . . 2 . . . . 1 . . . . . . . . . . 6 . Smash 17 | . . . . . . . . . . . . 10 1 . 6 . . . . Melee Attacks 185 | . . . . 10 4 28 . . 13 . . 79 17 1 33 . . . . Impact 185 | . . . . 10 4 28 . . 13 . . 79 17 1 33 . . . . Slashing . | . . . . . . . . . . . . . . . . . . . . Piercing . | . . . . . . . . . . . . . . . . . . . . Sneak Attacks 14 | . . . . . . . . . . . . 7 2 1 4 . . . . Combat Hostiles 2 | . . . . . . . . . . . . . 1 1 . . . . . Follow-up Attacks 2 | . . . . . . . . . . . . . 2 . . . . . . Damage Inflicted 24158 | . 561 1185 918 1735 753 1861 522 . 2697 47 286 5735 768 118 2369 24 483 3927 169 Guns 11127 | . 557 1185 918 1311 718 57 399 . 2315 47 46 1005 . . 53 . . 2347 169 Cannons 1976 | . . . . . . 38 123 . 114 . 240 366 . . 199 24 372 500 . Explosions 6257 | . . . . 424 35 1649 . . 268 . . 1959 . . 731 . 111 1080 . Melee 4794 | . . . . . . 117 . . . . . 2405 768 118 1386 . . . . Ramming 4 | . 4 . . . . . . . . . . . . . . . . . . Kinetic 3984 | . 196 1029 78 . . 27 286 . 396 . . 537 . . . . . 1435 . Thermal 7676 | . 361 156 840 1311 35 110 123 . 2187 47 46 775 . . 199 24 483 905 74 Explosive 5087 | . . . . 424 . 1577 . . . . . 1278 . . 728 . . 1080 . Electromagnetic 2613 | . . . . . 718 30 113 . 114 . 240 740 . . 56 . . 507 95 Impact 4794 | . . . . . . 117 . . . . . 2405 768 118 1386 . . . . Slashing . | . . . . . . . . . . . . . . . . . . . . Piercing . | . . . . . . . . . . . . . . . . . . . . Highest Corruption 35 | . . . . 3 3 4 . . 3 3 3 7 3 3 22 34 35 20 20 Average Corruption 6 | . . . . 2 3 3 . . 2 3 3 4 3 3 13 27 34 11 20 Corruption Purged 5 | . . . . . . . . . . . . 5 . . . . . . . Corruption Blocked . | . . . . . . . . . . . . . . . . . . . . Effects 366 | . . . . 15 9 32 . . 42 17 . 55 42 12 18 7 24 73 20 Message Errors 73 | . . . . 3 . 5 . . 9 4 . 9 12 6 2 . 5 15 3 Matter Fused 79 | . . . . 4 . 9 . . 5 4 . 8 11 3 6 3 3 18 5 Heat Flow Errors 57 | . . . . 2 3 8 . . 7 . . 13 8 1 1 . 3 8 3 Energy Discharges 41 | . . . . 2 3 6 . . 2 1 . 8 5 . 1 1 2 9 1 Parts Rejected 3 | . . . . . . . . . 1 . . . . . . 1 . 1 . Parts Fused 6 | . . . . . 1 . . . 1 . . 2 . . . . 1 . 1 Data Loss (minor) 48 | . . . . 3 . 1 . . 5 3 . 8 4 2 3 . 6 12 1 Data Loss (major) 27 | . . . . . . 2 . . 9 2 . 3 2 . 2 . 1 3 3 Misfires 14 | . . . . 1 . . . . . 3 . 1 . . 2 1 2 4 . Alerts 8 | . . . . . 1 1 . . 2 . . 1 . . 1 . . 1 1 Misdirections 3 | . . . . . . . . . . . . . . . . 1 1 . 1 Weapon Failures 7 | . . . . . 1 . . . 1 . . 2 . . . . . 2 1 Overload Shots 9 | . . . . . . . . . . . . . . . . . 2 7 . Overflow Damage 2733 | . . . . 6 . 111 . . . . . 1596 220 58 703 . . 39 . Projectiles 57 | . . . . . . . . . . . . 9 . . 12 . . 36 . Explosions 467 | . . . . 6 . 80 . . . . . 378 . . . . . 3 . Melee 2209 | . . . . . . 31 . . . . . 1209 220 58 691 . . . . Knockbacks 23 | . . . . . . 1 . . . . . 10 5 . 7 . . . . Impact 23 | . . . . . . 1 . . . . . 10 5 . 7 . . . . Kinetic . | . . . . . . . . . . . . . . . . . . . . Secondary . | . . . . . . . . . . . . . . . . . . . . Self-Inflicted Damage 1158 | . . . . . . 322 . . . . . 685 . . 118 . . 33 . Shots 19 | . . . . . . 5 . . . . . 10 . . 3 . . 1 . Rammed . | . . . . . . . . . . . . . . . . . . . . Targets Rammed 2 | . 2 . . . . . . . . . . . . . . . . . . Kicked 2 | . 2 . . . . . . . . . . . . . . . . . . Crushed . | . . . . . . . . . . . . . . . . . . . . Highest Temperature 562 | . 273 252 360 346 562 270 273 . 325 162 210 316 270 159 114 17 249 271 267 Average Temperature 96 | . 76 95 110 110 106 81 103 . 108 70 111 66 124 85 39 11 93 93 134 Received Heat Transfer 3178 | . 342 126 81 441 . 54 225 . 723 . 72 685 48 12 . . 111 60 198 Effects 21 | . 1 1 1 1 5 1 2 . 2 . . 3 2 . . . . . 2 Shutdowns 1 | . . . . . . . . . 1 . . . . . . . . . . Energy Bleed 6 | . . 1 . 1 1 1 1 . 1 . . . . . . . . . . Interference 11 | . 1 . . . 2 . 1 . . . . 3 2 . . . . . 2 Matter Decay 1 | . . . 1 . . . . . . . . . . . . . . . . Short Circuit 1 | . . . . . 1 . . . . . . . . . . . . . . Damage (minor) 1 | . . . . . 1 . . . . . . . . . . . . . . Siege Activations 1 | . . . . . . . . . 1 . . . . . . . . . . Total Turns 33 | . . . . . . . . . 33 . . . . . . . . . . Longest Duration 33 | . . . . . . . . . 33 . . . . . . . . . . Martial Activations . | . . . . . . . . . . . . . . . . . . . . Shielding Activations . | . . . . . . . . . . . . . . . . . . . . Robots Disrupted . | . . . . . . . . . . . . . . . . . . . . Combat Hostiles . | . . . . . . . . . . . . . . . . . . . . Robots Corrupted 25 | . . . . . . 1 . . . . 1 12 3 . 6 . . 1 1 Combat Hostiles 12 | . . . . . . . . . . . 1 5 2 . 3 . . . 1 Parts Fried 39 | . . . . . 5 1 . . 1 . 1 18 2 1 8 . . 2 . Impact Corruptions 80 | . . . . . . 1 . . . . . 45 11 1 22 . . . . Robots Melted 4 | . . . 1 . . . . . 2 . . . . . . . 1 . . Combat Hostiles 4 | . . . 1 . . . . . 2 . . . . . . . 1 . . Parts Melted 26 | . . 1 10 3 . . . . 9 . . 1 . . 1 . 1 . . Heat Transferred 12668 | . 812 359 2038 2718 50 137 148 . 3554 148 74 548 . . 400 50 483 1001 148 Parts Sabotaged . | . . . . . . . . . . . . . . . . . . . . Parts Stolen . | . . . . . . . . . . . . . . . . . . . . Parts Stripped . | . . . . . . . . . . . . . . . . . . . . Power Chain Reactions 2 | . . . . . 1 1 . . . . . . . . . . . . . Alert | -11 -10 -9 -8 -8 -8 -8 -7 -7 -7 -7 -7 -6 -6 -6 -5 -5 -5 -4 -4 ------- Run | Yrd Mat Mat Mat Gar Mat Gar Fac Was Fac Low Low Fac Low Low Fac Was Fac Fac Upp Maximum Alert Level 5 | . . 1 . 3 2 5 4 1 . . . 2 . . . . . 1 . Low Security (%) 57 | 100 100 89 100 16 . . . 52 100 . . 37 . . 100 100 100 58 . Level 1 14 | . . 10 . 23 27 6 . 47 . . . 22 . . . . . 41 . Level 2 13 | . . . . 33 72 16 . . . . . 39 . . . . . . . Level 3 5 | . . . . 27 . 2 81 . . . . . . . . . . . . Level 4 4 | . . . . . . 36 18 . . . . . . . . . . . . Level 5 4 | . . . . . . 38 . . . . . . . . . . . . . High Security . | . . . . . . . . . . . . . . . . . . . . Max Security . | . . . . . . . . . . . . . . . . . . . . Peak Influence 2203 | . 73 216 126 810 629 2203 1156 330 134 . . 578 . . 168 45 103 374 . Initial 1156 | . . 15 85 23 394 390 1156 330 42 . . . . . . 45 . 44 . Average 325 | . 27 68 43 488 496 1338 1037 189 28 . . 302 . . 69 15 17 127 . Influence Increases 8825 | . 278 666 259 827 473 2093 141 . 743 . 55 1446 75 45 524 . 193 897 110 Destroy 0b10 Robot/C 4160 | . 160 500 140 440 260 700 80 . 420 . 40 680 20 20 220 . 60 400 20 Destroy 0b10 Robot/NC 375 | . 25 25 40 . 40 10 . . 35 . . 80 . . 60 . 5 55 . Destroy Leader 800 | . 44 86 60 30 78 30 30 . 106 . . 134 10 10 58 . 22 102 . Allied During Kill 472 | . . . . 25 82 360 . . . . . . . . . . . 5 . Successful Hack 91 | . 18 5 4 8 . 5 . . 15 . . 14 . . . . . 22 . Disable Machine 765 | . 15 15 . 15 . 75 30 . 105 . . 300 . . 60 . 60 90 . Anti-Garrison Action 800 | . . . . 200 . 600 . . . . . . . . . . . . . Destroy Structure 897 | . 1 5 . 79 13 298 1 . 32 . . 148 . . 66 . 46 208 . Partial Spotted 30 | . 15 . 15 . . . . . . . . . . . . . . . . Lose Combat Pursuer 435 | . . 30 . 30 . 15 . . 30 . 15 90 45 15 60 . . 15 90 Influence Decreases 8825 | . 240 500 427 53 682 491 1399 885 669 134 55 872 649 45 393 131 102 792 306 Entered New Map 2933 | . . 23 119 13 416 211 1047 615 18 51 . . 214 . . 86 . 47 73 Time Decay 4225 | . 240 317 308 . 246 . 302 270 530 83 45 482 405 45 283 25 92 384 168 Lost Part 1006 | . . 10 . 40 . 60 50 . 80 . 10 240 30 . 110 . 10 301 65 Lost Ally 324 | . . . . . 20 220 . . 4 . . . . . . 20 . 60 . Purge Threat 337 | . . 150 . . . . . . 37 . . 150 . . . . . . . Squads Dispatched 43 | . 2 1 . . 4 . 3 . 9 . . 12 . . 3 . 1 8 . Investigation 5 | . . . . . 1 . 1 . 1 . . 1 . . . . . 1 . Extermination 17 | . . . . . . . 1 . 5 . . 6 . . 1 . . 4 . Reinforcement 17 | . 2 1 . . 3 . . . 3 . . 2 . . 2 . 1 3 . Assault 1 | . . . . . . . 1 . . . . . . . . . . . . Garrison 3 | . . . . . . . . . . . . 3 . . . . . . . Intercept . | . . . . . . . . . . . . . . . . . . . . Searches Triggered . | . . . . . . . . . . . . . . . . . . . . Construction Impeded 4 | . . 1 . . 1 . . . . . . 1 . . 1 . . . . Haulers Reinforced 1 | . . . . . . . . . 1 . . . . . . . . . . Active Scanning Responses . | . . . . . . . . . . . . . . . . . . . . Cargo Convoy Interrupts . | . . . . . . . . . . . . . . . . . . . . Stealth | -11 -10 -9 -8 -8 -8 -8 -7 -7 -7 -7 -7 -6 -6 -6 -5 -5 -5 -4 -4 --------- Run | Yrd Mat Mat Mat Gar Mat Gar Fac Was Fac Low Low Fac Low Low Fac Was Fac Fac Upp Distress Signals 17 | . 1 1 1 . 5 . . . 2 . . 4 . . 3 . . . . Communications Jammed 1 | . . . . . . . . . . . . . . . . . . 1 . Distress Signals 1 | . . . . . . . . . . . . . . . . . . 1 . Times Spotted 335 | . 14 36 8 21 20 40 5 . 38 2 4 51 8 1 34 5 6 35 7 Peak Tracking Total 7 | . 3 6 2 5 5 5 3 . 4 1 2 5 3 1 7 5 2 5 5 Tactical Retreats 26 | . . 1 . 1 . 1 . . 2 . 1 7 2 1 2 . . 4 4 ECM-based Alert Blocks 6 | . . . . . . . . . . . . 3 . . . . . 3 . Traps | -11 -10 -9 -8 -8 -8 -8 -7 -7 -7 -7 -7 -6 -6 -6 -5 -5 -5 -4 -4 ------- Run | Yrd Mat Mat Mat Gar Mat Gar Fac Was Fac Low Low Fac Low Low Fac Was Fac Fac Upp Traps Triggered 23 | . . . . 3 2 6 1 . 7 . . 1 . . 1 . 1 1 . Indirectly . | . . . . . . . . . . . . . . . . . . . . Trap Hack Attempts . | . . . . . . . . . . . . . . . . . . . . Triggered . | . . . . . . . . . . . . . . . . . . . . Disarmed 2 | . 2 . . . . . . . . . . . . . . . . . . Reprogrammed . | . . . . . . . . . . . . . . . . . . . . Reused . | . . . . . . . . . . . . . . . . . . . . Traps Extracted . | . . . . . . . . . . . . . . . . . . . . Installed . | . . . . . . . . . . . . . . . . . . . . Triggered . | . . . . . . . . . . . . . . . . . . . . Most Traps Carried 2 | . . . . . . . . . . . . . . . . . . . 2 Machines | -11 -10 -9 -8 -8 -8 -8 -7 -7 -7 -7 -7 -6 -6 -6 -5 -5 -5 -4 -4 ---------- Run | Yrd Mat Mat Mat Gar Mat Gar Fac Was Fac Low Low Fac Low Low Fac Was Fac Fac Upp Machines Disabled 64 | . 1 1 . 6 . 13 2 . 7 . . 20 . . 4 . 4 6 . Max in Single Turn 7 | . 1 1 . 2 . 2 1 . 6 . . 7 . . 1 . 4 1 . Garrison Relay 9 | . . . . 3 . 6 . . . . . . . . . . . . . Phase Generator 2 | . . . . 1 . 1 . . . . . . . . . . . . . Machines Repaired . | . . . . . . . . . . . . . . . . . . . . Machines Dismantled . | . . . . . . . . . . . . . . . . . . . . Machines Sabotaged . | . . . . . . . . . . . . . . . . . . . . Overloaded Fab Kills . | . . . . . . . . . . . . . . . . . . . . Hacking | -11 -10 -9 -8 -8 -8 -8 -7 -7 -7 -7 -7 -6 -6 -6 -5 -5 -5 -4 -4 --------- Run | Yrd Mat Mat Mat Gar Mat Gar Fac Was Fac Low Low Fac Low Low Fac Was Fac Fac Upp Machines Accessed 51 | . 4 5 4 4 2 2 3 . 7 1 . 13 . 1 1 . . 4 . Terminals 31 | . 4 5 1 4 1 2 1 . 5 . . 6 . . . . . 2 . Fabricators 4 | . . . . . . . 1 . . . . 2 . . . . . 1 . Repair Stations 3 | . . . . . . . . . 2 . . 1 . . . . . . . Recycling Units 6 | . . . 1 . . . 1 . . . . 3 . . 1 . . . . Scanalyzers 3 | . . . 1 . . . . . . . . 1 . . . . . 1 . Garrison Access 2 | . . . 1 . 1 . . . . . . . . . . . . . . Total Hacks 126 | . 9 11 9 6 5 6 12 . 20 1 . 31 . 1 1 . . 14 . Successful 64 | . 5 3 4 3 2 2 10 . 11 1 . 15 . 1 1 . . 6 . Failed 61 | . 4 8 4 3 3 4 2 . 9 . . 16 . . . . . 8 . Catastrophic 18 | . 2 2 . . 1 2 . . 3 . . 7 . . . . . 1 . Database Lockouts 1 | . . . 1 . . . . . . . . . . . . . . . . Manual 50 | . 6 10 5 . 4 4 1 . 6 . . 6 . . . . . 8 . Terminals 76 | . 9 11 4 6 4 6 2 . 11 . . 15 . . . . . 8 . Fabricators 8 | . . . . . . . 3 . . . . 3 . . . . . 2 . Repair Stations 15 | . . . . . . . . . 9 . . 6 . . . . . . . Recycling Units 13 | . . . 1 . . . 7 . . . . 4 . . 1 . . . . Scanalyzers 9 | . . . 2 . . . . . . . . 3 . . . . . 4 . Garrison Access 3 | . . . 2 . 1 . . . . . . . . . . . . . . Terminal Hacks 28 | . 5 3 2 3 1 2 1 . 3 1 . 2 . 1 . . . 4 . Part Schematic 1 | . . . 1 . . . . . . . . . . . . . . . . Prototype ID Bank 3 | . 1 1 . . . . . . . . . . . . . . . 1 . Open Door 4 | . . . . 1 . 1 . . . 1 . . . 1 . . . . . Branch Access Points 2 | . 1 . . . . . . . 1 . . . . . . . . . . Emergency Access Points 2 | . . . . 1 . 1 . . . . . . . . . . . . . Garrison Index 1 | . . . . . 1 . . . . . . . . . . . . . . Unreport Threat 3 | . . 1 . . . . . . 1 . . 1 . . . . . . . Disarm Traps 2 | . 2 . . . . . . . . . . . . . . . . . . Recall Investigation 1 | . . . . . . . . . . . . . . . . . . 1 . Recall Assault 1 | . . . . . . . 1 . . . . . . . . . . . . Registered Components 6 | . 1 1 1 . . . . . 1 . . 1 . . . . . 1 . Registered Prototypes 1 | . . . . . . . . . . . . . . . . . . 1 . Garrison Registry 1 | . . . . 1 . . . . . . . . . . . . . . . Fabricator Hacks 5 | . . . . . . . 2 . . . . 2 . . . . . 1 . Network Status 1 | . . . . . . . . . . . . . . . . . . 1 . Load Schematic 2 | . . . . . . . 1 . . . . 1 . . . . . . . Build 2 | . . . . . . . 1 . . . . 1 . . . . . . . Repair Station Hacks 14 | . . . . . . . . . 8 . . 6 . . . . . . . Scan Component 7 | . . . . . . . . . 4 . . 3 . . . . . . . Repair 7 | . . . . . . . . . 4 . . 3 . . . . . . . Recycling Unit Hacks 10 | . . . . . . . 7 . . . . 2 . . 1 . . . . Recycle Component 5 | . . . . . . . 5 . . . . . . . . . . . . Process 2 | . . . . . . . 1 . . . . 1 . . . . . . . Retrieve Matter 1 | . . . . . . . 1 . . . . . . . . . . . . Retrieve Components 2 | . . . . . . . . . . . . 1 . . 1 . . . . Scanalyzer 5 | . . . 1 . . . . . . . . 3 . . . . . 1 . Retrieve Study 5 | . . . 1 . . . . . . . . 3 . . . . . 1 . Garrison Access Hacks 2 | . . . 1 . 1 . . . . . . . . . . . . . . Unlock Access 2 | . . . 1 . 1 . . . . . . . . . . . . . . Unauthorized Hacks . | . . . . . . . . . . . . . . . . . . . . Terminals . | . . . . . . . . . . . . . . . . . . . . Fabricators . | . . . . . . . . . . . . . . . . . . . . Repair Stations . | . . . . . . . . . . . . . . . . . . . . Recycling Units . | . . . . . . . . . . . . . . . . . . . . Scanalyzers . | . . . . . . . . . . . . . . . . . . . . Garrison Access . | . . . . . . . . . . . . . . . . . . . . Data Cores Recovered 1 | . . . . . . . . . . . . . . . . . . 1 . Used . | . . . . . . . . . . . . . . . . . . . . Hacking Detections 40 | . 3 5 4 2 2 1 2 . 6 . . 12 . . . . . 3 . Full Trace Events 3 | . . . . . . 1 1 . . . . 1 . . . . . . . Feedback Events 1 | . . . . . . 1 . . . . . . . . . . . . . Hackware Fried 1 | . . . . . . 1 . . . . . . . . . . . . . Feedback Blocked . | . . . . . . . . . . . . . . . . . . . . Robot Schematics Acquired . | . . . . . . . . . . . . . . . . . . . . Robots Built . | . . . . . . . . . . . . . . . . . . . . Authchips . | . . . . . . . . . . . . . . . . . . . . Time . | . . . . . . . . . . . . . . . . . . . . Total Robot Build Rating . | . . . . . . . . . . . . . . . . . . . . Part Schematics Acquired 1 | . . . 1 . . . . . . . . . . . . . . . . Parts Built 2 | . . . . . . . 1 . . . . 1 . . . . . . . Authchips . | . . . . . . . . . . . . . . . . . . . . Time 109 | . . . . . . . 36 . . . . 73 . . . . . . . Total Part Build Rating 6 | . . . . . . . 3 . . . . 3 . . . . . . . Part Studies Acquired 5 | . . . 1 . . . . . . . . 3 . . . . . 1 . Parts Repaired 7 | . . . . . . . . . 4 . . 3 . . . . . . . Time 392 | . . . . . . . . . 216 . . 176 . . . . . . . Parts Recycled 5 | . . . . . . . 5 . . . . . . . . . . . . Recycled Matter 329 | . . . . . . . 130 . . . . 199 . . . . . . . Retrieved Matter 130 | . . . . . . . 130 . . . . . . . . . . . . Retrieved Components 9 | . . . . . . . . . . . . 6 . . 3 . . . . Parts Scanalyzed . | . . . . . . . . . . . . . . . . . . . . Part Schematics Acquired . | . . . . . . . . . . . . . . . . . . . . Parts Damaged . | . . . . . . . . . . . . . . . . . . . . Bothacking | -11 -10 -9 -8 -8 -8 -8 -7 -7 -7 -7 -7 -6 -6 -6 -5 -5 -5 -4 -4 ------------ Run | Yrd Mat Mat Mat Gar Mat Gar Fac Was Fac Low Low Fac Low Low Fac Was Fac Fac Upp Used RIF Installer 2 | . . . . 1 . 1 . . . . . . . . . . . . . Watcher Feeds 1 | . . . . . . 1 . . . . . . . . . . . . . Robots Hacked 15 | . . . . . . 8 . . 2 3 . . . . . . . 2 . Non-combat 1 | . . . . . . . . . . 1 . . . . . . . . . Combat 14 | . . . . . . 8 . . 2 2 . . . . . . . 2 . Robot Hacks Applied 15 | . . . . . . 8 . . 2 3 . . . . . . . 2 . parse_system 2 | . . . . . . . . . . 2 . . . . . . . . . streamctrl_high 1 | . . . . . . . . . . . . . . . . . . 1 . formatsys_high 12 | . . . . . . 8 . . 2 1 . . . . . . . 1 . Relay Couplers Released 32 | . . . . 9 . 23 . . . . . . . . . . . . . Machine Destruction 32 | . . . . 9 . 23 . . . . . . . . . . . . . Attached 15 | . . . . . . 7 1 . 2 1 . 1 . . . . . 1 2 Fabnet Peak Effective % . | . . . . . . . . . . . . . . . . . . . . Robots Rewired 7 | . . . . 3 . 4 . . . . . . . . . . . . . Allies Hacked 1 | . . . . . . 1 . . . . . . . . . . . . . Hacks Repelled 1 | . . . . . . . . . 1 . . . . . . . . . . Allies | -11 -10 -9 -8 -8 -8 -8 -7 -7 -7 -7 -7 -6 -6 -6 -5 -5 -5 -4 -4 -------- Run | Yrd Mat Mat Mat Gar Mat Gar Fac Was Fac Low Low Fac Low Low Fac Was Fac Fac Upp Total Allies 23 | . . . . 3 . 14 . . 2 1 . . . . . 1 . 2 . Largest Group 11 | . . . . 3 3 11 . . 1 1 . . . . . 1 . 2 . Highest-Rated Group 230 | . . . . 101 101 230 . . 21 21 . . . . . 31 . 112 . Highest-Rated Ally 56 | . . . . 39 39 39 . . 21 21 . . . . . 31 . 56 . Total Orders 5 | . . . . . 2 . . . . . . . . . . . . 3 . STAY 2 | . . . . . 1 . . . . . . . . . . . . 1 . FOLLOW 1 | . . . . . 1 . . . . . . . . . . . . . . EXPLORE 2 | . . . . . . . . . . . . . . . . . . 2 . Ally Attacks 179 | . . . . 3 42 101 . . 7 2 . . . . . 15 . 9 . Total Damage 3197 | . . . . 21 712 1755 . . 186 45 . . . . . 209 . 269 . Kills 38 | . . . . 1 11 25 . . . . . . . . . . . 1 . Allies Corrupted . | . . . . . . . . . . . . . . . . . . . . Allies Melted . | . . . . . . . . . . . . . . . . . . . . Intel | -11 -10 -9 -8 -8 -8 -8 -7 -7 -7 -7 -7 -6 -6 -6 -5 -5 -5 -4 -4 ------- Run | Yrd Mat Mat Mat Gar Mat Gar Fac Was Fac Low Low Fac Low Low Fac Was Fac Fac Upp Active Infowar (turns) 8259 | . . 196 . 90 28 . . . . . . 2351 2265 854 557 128 436 1149 205 Sensors 7285 | . . 196 . 90 28 . . . . . . 2314 2265 854 389 128 436 585 . A.S.S. 449 | . . . . . . . . . . . . . . . . . . 244 205 Terrain 448 | . . . . . . . . . . . . . . . 252 128 68 . . Cloaking 629 | . . . . . . . . . . . . . . . . . 44 585 . Jamming 318 | . . . . . . . . . . . . . . . . . . 318 . ECM 68 | . . . . . . . . . . . . 38 . . . . . 30 . Robot Analysis Total . | . . . . . . . . . . . . . . . . . . . . Derelict Logs Recovered 4 | . . . . . . . . . . 1 . . 1 1 . . . . 1 Drone Launches 4 | . . . . . . . . . . . . . . . . . . 4 . Drone Recoveries . | . . . . . . . . . . . . . . . . . . . . Exploration | -11 -10 -9 -8 -8 -8 -8 -7 -7 -7 -7 -7 -6 -6 -6 -5 -5 -5 -4 -4 ------------- Run | Yrd Mat Mat Mat Gar Mat Gar Fac Was Fac Low Low Fac Low Low Fac Was Fac Fac Upp Turns Passed 22447 | 58 686 1048 938 1127 531 1865 661 594 2879 1126 111 3419 2265 921 1044 128 436 2179 431 Spaces Moved 11366 | 43 431 597 625 639 237 859 284 454 1187 812 41 1764 841 469 432 101 207 977 366 Core 362 | 3 . . . . . . . 166 . . . . . . 1 . . . 192 Treads 3252 | . . . 28 317 . . . 288 560 . . 459 841 469 289 . . 1 . Legs 5497 | 40 431 597 597 322 237 859 284 . 474 . . 56 . . 142 101 207 976 174 Wheels 2255 | . . . . . . . . . 153 812 41 1249 . . . . . . . Hover . | . . . . . . . . . . . . . . . . . . . . Flight . | . . . . . . . . . . . . . . . . . . . . Fastest Speed 50 | 50 120 120 113 113 113 175 183 50 130 115 130 110 160 160 120 120 120 120 50 Average Speed 153 | 115 120 128 124 136 144 179 189 119 181 129 130 139 188 194 172 120 165 168 100 Slowest Speed 950 | 120 120 130 160 160 183 257 260 160 330 130 130 240 200 200 950 120 183 410 190 Overloaded Moves . | . . . . . . . . . . . . . . . . . . . . Propulsion Burnouts . | . . . . . . . . . . . . . . . . . . . . Robots Hopped . | . . . . . . . . . . . . . . . . . . . . Potential Cave-ins 3 | . . . . . . . . . . . . . . . . . . 3 . Cave-ins Triggered . | . . . . . . . . . . . . . . . . . . . . Exploration Rate (%) 43 | 3 56 52 39 66 25 89 4 96 31 95 6 41 64 36 10 86 6 21 37 Regions Visited 19 Branch Regions 5 Pre-discovered Areas 2 | . . . . . . . . . . . . . . 1 . . . . 1 Known Exits Taken 8 | . . . 1 . 1 . . . 1 . . 1 1 1 . . 1 1 . Unknown Exits Taken 5 | 1 1 1 . . . . . . . 1 1 . . . . . . . . Scrap Searched 8 | . . . . . . . . . . 3 . . 3 2 . . . . . Spaces Dug 48 | . . . . . 4 7 . . 13 . . 16 2 . 1 . . 5 . Terrain Destroyed 770 | . 1 . . 115 6 256 1 . 41 . . 160 2 . 35 . 32 121 . Melee 43 | . . . . . 4 7 . . 13 . . 16 2 . 1 . . . . Projectile 43 | . 1 . . . . 2 1 . 4 . . . . . . . 4 31 . AOE 682 | . . . . 115 2 247 . . 24 . . 144 . . 34 . 28 88 . Terrain Rammed . | . . . . . . . . . . . . . . . . . . . . Walls Destroyed . | . . . . . . . . . . . . . . . . . . . . Machines Disabled . | . . . . . . . . . . . . . . . . . . . . Actions | -11 -10 -9 -8 -8 -8 -8 -7 -7 -7 -7 -7 -6 -6 -6 -5 -5 -5 -4 -4 --------- Run | Yrd Mat Mat Mat Gar Mat Gar Fac Was Fac Low Low Fac Low Low Fac Was Fac Fac Upp Total 15085 | 48 514 781 720 782 356 1097 374 515 1710 878 89 2504 1497 478 655 107 276 1290 414 Wait 2065 | . 7 96 16 34 64 75 48 3 337 12 41 450 640 . 136 6 30 53 17 Move 11349 | 42 430 596 624 638 236 858 284 453 1186 811 40 1763 840 468 432 100 206 976 366 Hop . | . . . . . . . . . . . . . . . . . . . . Pick Up 210 | . 10 10 12 12 6 20 6 23 17 17 . 32 1 2 7 . 4 21 10 Fast Attach 111 | 6 3 4 6 1 4 3 3 6 6 1 . 21 1 1 8 1 6 23 7 Attach 120 | . . 3 2 7 1 4 4 2 12 1 . 33 . 1 15 . 2 30 3 Detach 66 | . 1 2 1 1 1 2 1 2 4 3 . 15 . 1 9 . 5 17 1 Swap 154 | . 7 5 11 8 6 25 4 . 24 4 1 28 1 . 1 . 7 22 . Drop 155 | . 7 14 17 9 3 9 1 25 9 16 . 20 . 4 . . 4 14 3 Fire 600 | . 47 51 31 44 31 27 23 . 96 10 7 66 1 . 14 . 12 133 7 Melee 178 | . . . . 10 4 28 . . 13 . . 76 13 1 33 . . . . Ram . | . . . . . . . . . . . . . . . . . . . . Kick 2 | . 2 . . . . . . . . . . . . . . . . . . Crush . | . . . . . . . . . . . . . . . . . . . . Escape Stasis 26 | . . . . 6 . 20 . . . . . . . . . . . . . Rewire 48 | . . . . 12 . 26 . 1 6 3 . . . . . . . . . Trap . | . . . . . . . . . . . . . . . . . . . . Miscellaneous 1 | . . . . . . . . . . . . . . . . . . 1 . Route ------- -11/Scrapyard -10/Materials (discovered 2 exits: *Mat / *Min) -9/Materials (discovered 3 exits: *Mat x2 / [*Min]) -8/Materials (discovered 2 exits: [*Sto] / Gar) -8/Garrison (discovered 3 exits: *Mat x3) -8/Materials -8/Garrison (discovered 4 exits: *Fac x3 / [*Mat]) -7/Factory -7/Waste -7/Factory (discovered 2 exits: *Low x2) -7/Lower Caves -7/Lower Caves -6/Factory -6/Lower Caves -6/Lower Caves -5/Factory -5/Waste -5/Factory -4/Factory -4/Upper Caves History --------- Turn | Location | Event 4 | -11/Scrapyard | Discovered new exit (range 15) 59 | -11/Scrapyard | Entered Materials 79 | -10/Materials | Identified exit to Mines 307 | -10/Materials | Build established: Mutant 537 | -10/Materials | Discovered new exit (range 15) 567 | -10/Materials | Core integrity fell below 50% 745 | -10/Materials | Entered another Materials area 745 | -9/Materials | Evolved 2 slots: Utility x2 890 | -9/Materials | Build established: Scavenger-Mutant 1214 | -9/Materials | Build established: Hacker-Mutant 1304 | -9/Materials | Discovered new exit (range 4) 1471 | -9/Materials | Discovered new exit (range 7) 1744 | -9/Materials | Discovered new exit (range 11) 1793 | -9/Materials | Entered another Materials area 1793 | -8/Materials | Evolved 2 slots: Propulsion x1, Utility x1 2370 | -8/Materials | Central database locked down 2446 | -8/Materials | Discovered new exit (range 13) 2724 | -8/Materials | Identified exit to Garrison 2731 | -8/Materials | Entered Garrison 2803 | -8/Garrison | Garrison Relay disabled 2875 | -8/Garrison | Triggered checkpoint 2940 | -8/Garrison | Destroyed 9 combat bots 3040 | -8/Garrison | Garrison Relay disabled 3174 | -8/Garrison | Phase Generator disabled 3225 | -8/Garrison | Triggered checkpoint 3359 | -8/Garrison | Discovered new exit (range 10) 3455 | -8/Garrison | Triggered checkpoint 3470 | -8/Garrison | Garrison Relay disabled 3538 | -8/Garrison | Triggered checkpoint 3552 | -8/Garrison | Triggered checkpoint 3570 | -8/Garrison | Discovered new exit (range 26) 3570 | -8/Garrison | Discovered new exit (range 38) 3570 | -8/Garrison | Discovered new exit (range 35) 3583 | -8/Garrison | Core integrity fell below 50% 3625 | -8/Garrison | Installed Relay Interface Framework 3858 | -8/Garrison | Entered Materials 3858 | -8/Materials | Accompanied by 3 allies 4352 | -8/Materials | Identified exit to Garrison 4389 | -8/Materials | Entered Garrison 4389 | -8/Garrison | Accompanied by 1 ally 4453 | -8/Garrison | Triggered checkpoint 4525 | -8/Garrison | Triggered checkpoint 4542 | -8/Garrison | Garrison Relay disabled 4614 | -8/Garrison | Rescued a captive Derelict 4615 | -8/Garrison | Rescued a captive Derelict 4677 | -8/Garrison | Triggered checkpoint 4738 | -8/Garrison | Garrison Relay disabled 4821 | -8/Garrison | Triggered checkpoint 4843 | -8/Garrison | Triggered checkpoint 4846 | -8/Garrison | Triggered checkpoint 4866 | -8/Garrison | Triggered checkpoint 4977 | -8/Garrison | Triggered checkpoint 5027 | -8/Garrison | Garrison Relay disabled 5094 | -8/Garrison | Discovered new exit (range 12) 5292 | -8/Garrison | System Shield fried by hacking feedback 5322 | -8/Garrison | Build established: Bothacker-Mutant 5387 | -8/Garrison | Garrison Relay disabled 5416 | -8/Garrison | Garrison Relay disabled 5469 | -8/Garrison | Discovered new exit (range 10) 5527 | -8/Garrison | Triggered checkpoint 5585 | -8/Garrison | Discovered new exit (range 3) 5619 | -8/Garrison | Lost 6 allies 5929 | -8/Garrison | Triggered checkpoint 5947 | -8/Garrison | Garrison Relay disabled 5996 | -8/Garrison | Discovered new exit (range 3) 6020 | -8/Garrison | Expanded RIF knowledge: Watcher Feeds 6128 | -8/Garrison | Core integrity fell below 20% 6130 | -8/Garrison | Phase Generator disabled 6254 | -8/Garrison | Entered Factory 6254 | -7/Factory | Evolved 2 slots: Utility x2 6576 | -7/Factory | Fabricated System Shield (x1) 6654 | -7/Factory | First assault squad dispatched 6701 | -7/Factory | Lost 5 parts (1p2n1u1w) 6915 | -7/Factory | Sucked down chute 6915 | -7/Factory | Entered Waste 6915 | -7/Waste | The area was eerily silent 7092 | -7/Waste | Build established: Wizard-Mutant 7396 | -7/Waste | Discovered new exit (range 16) 7509 | -7/Waste | Entered Factory 7914 | -7/Factory | Repaired Hvy. Treads 7994 | -7/Factory | Repaired Broken Arm. Medium Treads 8058 | -7/Factory | Repaired Antimatter Reactor 8212 | -7/Factory | Build established: Hacker-Mutant 8996 | -7/Factory | Repaired HERF Cannon 9593 | -7/Factory | Core integrity fell below 50% 9695 | -7/Factory | Noticed a derelict Sapper rigging charges 9965 | -7/Factory | Identified exit to Lower Caves 10247 | -7/Factory | Lost 3 parts (1u2w) 10388 | -7/Factory | Entered Lower Caves 11064 | -7/Lower Caves | Encountered a Warlord checkpoint 11209 | -7/Lower Caves | Spotted B-75 Beast 11362 | -7/Lower Caves | Found Prototype Device 11403 | -7/Lower Caves | Identified Heart of Steel 11463 | -7/Lower Caves | Discovered new exit (range 9) 11514 | -7/Lower Caves | Entered another Lower Caves area 11612 | -7/Lower Caves | Discovered new exit (range 5) 11625 | -7/Lower Caves | Entered Factory 11625 | -6/Factory | Evolved 2 slots: Power x1, Utility x1 11771 | -6/Factory | Repaired Hvy. Deuterium Engine 11835 | -6/Factory | Repaired HERF Cannon 11880 | -6/Factory | Repaired Arm. Huge Wheel 12209 | -6/Factory | Discovered new exit (range 12) 12499 | -6/Factory | Garrison activated, responded to threat 12590 | -6/Factory | Lost 5 parts (1p1n1u2w) 12858 | -6/Factory | Build established: Bothacker-Mutant 13241 | -6/Factory | Lost 4 parts (1p2u1w) 13642 | -6/Factory | Fabricated System Shield? 13667 | -6/Factory | Lost 4 parts (1p2n1w) 13686 | -6/Factory | Core integrity fell below 50% 14383 | -6/Factory | Spotted B-75 Beast 14421 | -6/Factory | Core integrity fell below 20% 14422 | -6/Factory | Destroyed B-75 Beast 14435 | -6/Factory | Lost 3 parts (2p1w) 14687 | -6/Factory | Build established: Hacker-Gladiator 15042 | -6/Factory | Identified exit to Lower Caves 15044 | -6/Factory | Entered Lower Caves 15198 | -6/Lower Caves | Learned Factory terminal intel 15497 | -6/Lower Caves | Build established: Hacker-Mutant 16551 | -6/Lower Caves | Encountered a Warlord checkpoint 17237 | -6/Lower Caves | Discovered new exit (range 14) 17273 | -6/Lower Caves | Identified exit to Lower Caves 17309 | -6/Lower Caves | Entered another Lower Caves area 17328 | -6/Lower Caves | Discovered new exit (range 10) 17356 | -6/Lower Caves | Identified exit to Factory 17952 | -6/Lower Caves | Build established: Hacker-Gladiator 18055 | -6/Lower Caves | Spotted B-75 Beast 18230 | -6/Lower Caves | Entered Factory 18230 | -5/Factory | Evolved 2 slots: Propulsion x1, Utility x1 18231 | -5/Factory | Identified exit to Extension 18232 | -5/Factory | Loaded intel: 28 terminal locations 18842 | -5/Factory | Lost 6 parts (1p2n2u1w) 18975 | -5/Factory | System corruption reached 10% 18989 | -5/Factory | Lost 5 parts (3n1u1w) 19012 | -5/Factory | Build established: Hacker-Mutant 19274 | -5/Factory | Sucked down chute 19274 | -5/Factory | Entered Waste 19275 | -5/Waste | Met a frightened Derelict 19289 | -5/Waste | EMP discharged 19304 | -5/Waste | Spotted C-40 Crusher 19324 | -5/Waste | Spotted C-40 Crusher 19338 | -5/Waste | Spotted C-40 Crusher 19345 | -5/Waste | Spotted C-40 Crusher 19345 | -5/Waste | Spotted C-40 Crusher 19357 | -5/Waste | Spotted C-40 Crusher 19388 | -5/Waste | Discovered new exit (range 11) 19389 | -5/Waste | EMP discharged 19389 | -5/Waste | System corruption reached 30% 19401 | -5/Waste | Identified exit to Factory 19402 | -5/Waste | Entered Factory 19824 | -5/Factory | Discovered new exit (range 4) 19836 | -5/Factory | Identified exit to Factory 19838 | -5/Factory | Entered another Factory area 19838 | -4/Factory | Evolved 2 slots: Utility x2 20457 | -4/Factory | Lost 5 parts (1p4u) 21047 | -4/Factory | System corruption reached 10% 21078 | -4/Factory | Lost 4 parts (2p2n) 21576 | -4/Factory | Lost 4 allies 21690 | -4/Factory | Lost 14 parts (2p4n5u3w) 21702 | -4/Factory | Core integrity fell below 50% 21765 | -4/Factory | Lost 7 parts (1p2u4w) 21773 | -4/Factory | Found Prototype Device 21773 | -4/Factory | Identified Active Sensor Suite 21960 | -4/Factory | Discovered new exit (range 4) 21966 | -4/Factory | Identified exit to Upper Caves 22017 | -4/Factory | Entered Upper Caves 22019 | -4/Upper Caves | Attracted the attention of an 0b10 checkpoint 22069 | -4/Upper Caves | Learned location of Quarantine (-2) 22121 | -4/Upper Caves | Build established: Scavenger-Skirmisher 22253 | -4/Upper Caves | Core integrity fell below 20% 22308 | -4/Upper Caves | Lost 7 parts (1p1n2u3w) 22331 | -4/Upper Caves | Released all parts (10) 22341 | -4/Upper Caves | Encountered a Warlord checkpoint 22448 | -4/Upper Caves | Destroyed by G-73 Enforcer with Phase Gun Last Messages --------------- 22369_ Slug penetrates V8-ZME(g). 22369_ Slug penetrates Wall. 22380_ System corrupted: Heat flow error (+116). 22380_ Dropped Corrupted Unknown Device. 22383_ Acquired Hvy. Mass Driver. 22384_ Acquired Graphene Brace. 22386_ Acquired Myomer Leg. 22388_ Acquired Adv. Cryofiber Web. 22398_ System corrupted: IFF burst signal emitted. 22414_ Acquired Relay Coupler [Demolisher]. 22416_ Acquired Authchip [R/Combat]. 22418_ Acquired Relay Coupler [Duelist]. 22422_ Acquired Corrupted Wave Gun. 22423_ Dropped Corrupted Wave Gun. 22424_ Acquired Corrupted Neutrino Core. 22426_ Dropped Corrupted Neutrino Core. 22427_ Acquired Corrupted Lgt. Antimatter Reactor. 22431_ System corrupted: Heat flow error (+135). Map ----- +----------------------------------------------------+ | ?????????????????????????????????????????????????? | | ?????????????????????????????????????????????????? | | ?????????????????????????????????????????????????? | | ?????????????????????????????????????????????????? | | ?????????????????????????????????????????????????? | | ?????????????????????????????????????????????????? | | ?????????????????????????????????????????????????? | | ?????????????????????????????????????????????????? | | ?????????????????????????????????????????????????? | | ?????????????????????????????????????????????????? | | ?????????????????????????????????????????????????? | | ?????????????????????????????????????????????????? | | ???????????????????????????????????###?????####??? | | ???????????????????????????????????# ###??# ###? | | ????????????????????????????????#### ### ## | | ????????????????????????????????# #? | | ####?????????????????????????????# #? | | #??????????????????######??????# ## | | ##????#????????##### ##????## | | ##?? ##???????# ###### # | | ## #???????# ## # | | ???????# ### ## # | | ???????## ???# ### ## | | ?????????#????# #?### ##? | | #???????????????????# #???## ## ### | | #?????????????????????#@#????###### | | ###???????????????????? #????????# | | #???????????????????? #????????# ### | | #?????????????????? gh####????????# #??### | | #???? # ???????? ????????????# ##?????# | | #??? ?????? ??????????#### ####????# | | #??# ????"" ##?????????# # #????? | | #### "???" ?????????# ##????? | | ""??? ??????????# ##### ##????? | | ""??? " ?????????#### ?????# ##???? | | #### "???? ?????????? #????????# & ##??? | | ????# ??????????????? #???????##!! & #??? | | ????? ???????????????# ?????### !*## #??? | | ##???# ??????????####??# #?????# [### ###? | | ##??# #??????????# ##?# #?????# #?## #? | | ##?# #??????????# ### #?????## #??# ## | | ### ######??????# ######## ##?# # | | ## ## ######## #?## ## | | ## #### ### | | ######## | | ## #### #??????#### | | #############??# ##?????????# ######### | | #??????????????########??????????## ##???????? | | ##??????????????????????????????????##????????? | | # ##?????????????????????????????????????????????? | +----------------------------------------------------+ Best States ------------- Heat Dissipation 81 Coolant Potential 65 Energy Generation 37 Energy Capacity 515 Matter Stores 300 Matter Capacity 300 Sight Range 16 Robot Scan Range 20 Terrain Scan Range 14 Terrain Scan Density 10 ECM Strength 2 Jamming Range 14 Cloak Strength 2 Base Temperature (-) 200 EM Shielding 3 Armor Coverage 600 Resistance: EM 25 Core Shielding 30 Evasion (%) 70 Melee Accuracy 18 Target Analysis 9 Core Analysis 6 Recoil Reduction 4 Particle Charging 20 Offensive Hacking 40 Defensive Hacking 22 Relay Coupler Types 2 Relay Coupler Value 49 Authchip Count 1 Item Schematics ----------------- System Shield | -8/Materials | Hacked Robot Schematics ------------------ None Fabricated ------------ System Shield | x1 | -7/Factory System Shield | x1 | -6/Factory Repaired ---------- Hvy. Treads | 15% | -7/Factory Arm. Medium Treads | 3% | -7/Factory | Broken Antimatter Reactor | 43% | -7/Factory HERF Cannon | 5% | -7/Factory Hvy. Deuterium Engine | 54% | -6/Factory HERF Cannon | 61% | -6/Factory Arm. Huge Wheel | 48% | -6/Factory Studied --------- Carbon-fiber Leg | -8/Materials | Hacked Lgt. Angular Momentum Engine | -6/Factory | Hacked Med. Treads | -6/Factory | Hacked Lgt. Nuclear Core | -6/Factory | Hacked Railgun | -4/Factory | Hacked Alien Tech Used ----------------- None Achievements -------------- Below Challenges ------------ None Game ------ Seed ShiftRefineryJets Manual? 0 Play Time 02:55:32 Cumulative 75.4 hours Start 2026.09.06 @ 04:20:16 End 2026.09.06 @ 07:39:11 Sessions 1 Manual Loads 0 Difficulty Rogue Special Mode None Game No. 95 Rogue 95 Adventurer 0 Explorer 0 Win Type - Total 0 Types 0/0/0/0/0/0/0/0/0/0 Lore% 39 Gallery% 40 Achievement% 35 Wizard Run 0 Options --------- Layout 1 ASCII 0 Keyboard 0 Movement Mouse Keybinds 0 Fullscreen 2 Font 24/Smallcaps Map View 50x35 Zoom Use 0% Tactical HUD 1 Map Filters NONE Filters NONE Steam 1 RUN: f7e1da4c-8e90-4d72-8278-e5f4455edb1e